[Event "HUN-chT Youth 2019"]
[Site "Budapest"]
[Date "2019.10.29"]
[Round "7.16"]
[White "Molnar-Saska, Tamas"]
[Black "Nagy, Levente"]
[Result "1/2-1/2"]
[ECO "B35"]
[WhiteElo "1215"]
[BlackElo "2092"]
[Annotator "NA"]
[PlyCount "125"]
[EventDate "2019.10.26"]
[EventType "team-tourn"]
[EventCountry "HUN"]
[SourceTitle "playchess.com"]
[Source "ChessBase"]
[SourceQuality "1"]
[TimeControl "5400+30"]

1. e4 {[%emt 0:00:00]} c5 {[%emt 0:00:00]} 2. Nf3 {[%emt 0:00:00]} Nc6 {[%emt 0:00:19]} 3. d4 {[%emt 0:00:00]} cxd4 {[%emt 0:00:38]} 4. Nxd4 {[%emt 0:00:12]} g6 {[%emt 0:00:28]} 5. Nc3 {[%emt 0:00:21]} Bg7 {[%emt 0:00:34]} 6. Be3 {[%emt 0:00:20]} Nf6 {[%emt 0:00:40]} 7. Bc4 {[%emt 0:00:32]} O-O {[%emt 0:00:38]} 8. Bb3 {[%emt 0:00:50]} Ng4 {[%emt 0:01:38]} 9. Qxg4 {[%emt 0:01:04]} Nxd4 {[%emt 0:00:11]} 10. Bxd4 {[%emt 0:01:23] B35: Sicilian: Accelerated Dragon with 5 Nc3: main line} (10. Qh4 d6 11. Rd1 Nxb3 12. axb3 Re8 13. O-O b5 14. Bh6 b4 15. Bxg7 Kxg7 16. Nd5 a5 17. f4 e6 18. Qxd8 Rxd8 {½-½ (30) Shyaamnikhil,P (2422)-Himanshu,S (2510) Patna 2017}) 10... Bxd4 {[%emt 0:00:20]} 11. Qg3 {[%emt 0:01:25]} d6 {[%emt 0:03:06]} 12. O-O $146 {[%emt 0:01:07]} ({Predecessor:} 12. O-O-O Bg7 13. h4 Be6 14. Bxe6 fxe6 15. h5 Qe8 16. Rh4 Qf7 17. hxg6 Qxf2 {0-1 (46) Ceylan,S (1689)-Turkkan,E (1531) Antalya 2019}) 12... Bg7 {[%emt 0:01:06]} 13. Rad1 {[%emt 0:02:54]} Bd7 {[%emt 0:03:16]} 14. Rfe1 {[%emt 0:03:22]} Rc8 {[%emt 0:02:56]} 15. Rd3 {[%emt 0:02:32]} Qa5 {[%emt 0:05:00]} 16. Rde3 {[%emt 0:03:19]} Bh6 {[%emt 0:05:59]} 17. Rd3 {[%emt 0:02:07]} Bg7 {[%emt 0:18:15]} 18. Red1 {[%emt 0:00:30]} Bxc3 {[%emt 0:00:30]} 19. Rxc3 {[%emt 0:00:30]} Rxc3 {[%emt 0:00:30]} 20. Qxc3 {[%emt 0:00:30]} Qh5 21. Rf1 {[%emt 0:03:28]} Rc8 {[%emt 0:01:00]} 22. Qe3 Bb5 {[%emt 0:05:55]} 23. Re1 {[%emt 0:01:41]} b6 {[%emt 0:04:23]} 24. Qf4 {[%emt 0:02:35]} Rf8 {[%emt 0:01:31]} 25. e5 {[%emt 0:01:46]} Qf5 $16 {[%emt 0:07:27]} ({Black should try} 25... dxe5 $14 26. Qxe5 e6) 26. Qxf5 {[%emt 0:01:38]} gxf5 {[%emt 0:00:07]} 27. exd6 {[%emt 0:00:55]} exd6 {[%emt 0:00:13]} 28. h3 {[%emt 0:00:37]} Re8 {[%emt 0:00:27]} 29. Rd1 {[%emt 0:00:50]} Rd8 {[%emt 0:00:49]} 30. Rd5 {[%emt 0:00:21]} Bc6 {[%emt 0:03:00]} 31. Rxf5 {[%emt 0:00:38]} Rd7 {[%emt 0:00:17]} 32. Kh2 {[%emt 0:02:26]} Kg7 {[%emt 0:01:41]} 33. g3 {[%emt 0:00:52]} a5 {[%emt 0:02:30]} 34. Bc4 {[%emt 0:02:05]} Rc7 {[%emt 0:02:09]} 35. Bb5 {[%emt 0:01:25]} Bxb5 {[%emt 0:01:23]} 36. Rxb5 {[%emt 0:00:25]} Rxc2 {[%emt 0:00:16]} 37. Kg2 {[%emt 0:01:05]} Rc6 {[%emt 0:00:40]} 38. a3 {[%emt 0:01:57]} Kf6 {[%emt 0:01:27]} 39. Kf3 {[%emt 0:01:08]} Ke6 {[%emt 0:03:40]} 40. Kg4 {[%emt 0:01:03]} Kf6 {[%emt 0:00:31]} 41. f4 {[%emt 0:00:33]} Ke6 {[%emt 0:03:23]} 42. Rh5 {[%emt 0:00:51]} Rc2 {[%emt 0:01:07]} 43. b4 {[%emt 0:02:01]} Rc3 {[%emt 0:01:40]} 44. bxa5 {[%emt 0:00:21]} Rxa3 {[%emt 0:01:20]} 45. axb6 {[%emt 0:00:38]} Rb3 {[%emt 0:00:03]} 46. Rxh7 {[%emt 0:01:18]} d5 {[%emt 0:00:31]} 47. Rh6+ {[%emt 0:01:07]} Ke7 {[%emt 0:00:34]} 48. Rc6 {[%emt 0:00:56]} Kd7 {[%emt 0:01:47]} 49. Rc7+ {[%emt 0:00:21]} Kd8 {[%emt 0:00:09]} 50. Rxf7 {[%emt 0:00:56]} Rxb6 {[%emt 0:00:13]} 51. Rf5 {[%emt 0:00:27]} Rd6 {[%emt 0:00:44]} 52. Re5 {[%emt 0:00:25]} d4 {[%emt 0:00:39]} 53. Re1 {[%emt 0:00:35]} d3 {[%emt 0:00:19]} 54. Rd1 {[%emt 0:00:10]} d2 {[%emt 0:00:06]} 55. h4 {[%emt 0:00:22]} Ke7 {[%emt 0:00:10]} 56. Kf3 {[%emt 0:00:51]} Kf7 {[%emt 0:00:19]} 57. Ke2 {[%emt 0:00:26]} Rg6 {[%emt 0:00:21]} 58. Kxd2 {[%emt 0:00:54]} Rxg3 {[%emt 0:00:02]} 59. Rh1 {[%emt 0:00:36]} Rf3 {[%emt 0:00:21]} 60. h5 {[%emt 0:00:44]} Rxf4 {[%emt 0:00:14]} 61. Ke3 {[%emt 0:01:01]} Rf6 {[%emt 0:00:17]} 62. h6 {[%emt 0:00:48]} Kg8 {[%emt 0:00:08]} 63. Ke4 1/2-1/2

[Event "HUN-chT Youth 2019"]
[Site "Budapest"]
[Date "2019.10.29"]
[Round "7.17"]
[White "Bernath, Bence"]
[Black "Szabo, Miklos"]
[Result "1-0"]
[ECO "C88"]
[WhiteElo "2004"]
[BlackElo "1796"]
[Annotator "NA"]
[PlyCount "71"]
[EventDate "2019.10.26"]
[EventType "team-tourn"]
[EventCountry "HUN"]
[SourceTitle "playchess.com"]
[Source "ChessBase"]
[SourceQuality "1"]
[TimeControl "5400+30"]

{[%evp 13,69,30,44,32767,32767,32767,52,37,56,69,32767,32767,32767,57,70,32767,32767,4,35,0,16,31,32767,32767,32767,32767,29,20,62,32767,102,32767,32767,32767,168,63,439,433,32767,435,32767,32767,32767,32767,32767,32767,406,402,32767,32767,509,584,32767,32767,32767,32767,1017,1362]} 1. e4 {[%emt 0:00:00]} e5 {[%emt 0:00:00]} 2. Nf3 {[%emt 0:00:33]} Nc6 {[%emt 0:00:00]} 3. Bb5 {[%emt 0:00:35]} a6 {[%emt 0:00:00]} 4. Ba4 {[%emt 0:00:30]} Nf6 {[%emt 0:00:00]} 5. O-O {[%emt 0:00:33]} b5 {[%emt 0:00:27]} 6. Bb3 {[%emt 0:00:23]} Be7 {[%emt 0:00:54]} 7. Re1 {[%emt 0:01:32]} d6 {[%emt 0:00:53]} 8. c3 {[%emt 0:00:26]} Bg4 {[%emt 0:01:18]} 9. d3 {[%emt 0:00:45]} O-O {[%emt 0:00:33]} 10. Nbd2 {[%emt 0:00:16]} Nb8 {[%emt 0:01:47] C90: Closed Ruy Lopez with 7...d6: Early deviations} (10... Na5 11. Bc2 Nd7 12. h3 Bh5 13. Nf1 c5 14. g4 Bg6 15. Ng3 Re8 16. Nf5 Bf8 17. Kg2 d5 18. N3h4 {½-½ (63) Dvoirys,S (2528)-Mindlin,A (2472) Ramat Gan 2018}) 11. h3 {[%emt 0:01:00]} Bh5 {[%emt 0:02:09]} 12. Nf1 {[%emt 0:00:49]} c5 $146 {[%emt 0:00:33]} ({Predecessor:} 12... Nbd7 13. Ng3 Bg6 14. Nh4 c5 15. Qf3 Rc8 16. Nhf5 c4 17. dxc4 bxc4 18. Bc2 Ne8 19. b4 Bxf5 20. Nxf5 {1-0 (34) Deng,T (1824)-Ton,N (2029) Ho Chi Minh City 2016}) 13. g4 {[%emt 0:00:47]} Bg6 {[%emt 0:00:58]} 14. Ng3 {[%emt 0:00:12]} Nbd7 {[%emt 0:04:10]} 15. Nf5 {[%emt 0:01:57]} ({Better is} 15. a4 $16) 15... Nb6 {[%emt 0:03:22]} (15... Bxf5 $5 16. gxf5 Qc7 $11) 16. Bc2 {[%emt 0:03:38]} Rc8 {[%emt 0:02:13]} 17. N3h4 {[%emt 0:02:28]} Nfd7 {[%emt 0:06:38]} 18. Nxe7+ {[%emt 0:01:27]} Qxe7 {[%emt 0:00:01]} 19. Nf5 {[%emt 0:00:45]} Bxf5 {[%emt 0:01:00]} 20. gxf5 {[%emt 0:00:34]} Qh4 {[%emt 0:01:45]} 21. Qf3 {[%emt 0:00:40]} g6 {[%emt 0:01:57]} (21... Nf6 $14) 22. Kh2 {[%emt 0:01:30]} Kh8 {[%emt 0:01:22]} 23. Rg1 {[%emt 0:01:14]} Rg8 {[%emt 0:10:58]} (23... Qd8 $16 {was worth a try.}) 24. fxg6 {[%emt 0:15:36]} (24. Bg5 $16 Qh5 25. Qxh5 gxh5 26. Be7) 24... fxg6 $2 {[%emt 0:03:09]} (24... Rxg6 $14 25. Be3 Qe7) 25. Bg5 {[%emt 0:00:21]} Qh5 {[%emt 0:00:42] [#]} 26. Qe3 $1 {[%emt 0:00:20]} h6 {[%emt 0:04:45]} 27. Bd1 {[%emt 0:00:45]} Qxg5 {[%emt 0:00:12]} 28. Rxg5 {[%emt 0:00:06]} hxg5 {[%emt 0:00:01]} 29. Qxg5 {[%emt 0:00:11]} Rg7 {[%emt 0:00:28]} 30. Bg4 {[%emt 0:00:32]} Rf8 {[%emt 0:00:20]} 31. f3 {[%emt 0:00:38]} Nf6 {[%emt 0:00:31]} 32. Qh6+ {[%emt 0:00:23]} Nh7 {[%emt 0:00:30]} 33. Rg1 {[%emt 0:01:24]} d5 {[%emt 0:00:13]} 34. Bf5 {[%emt 0:01:20]} Rfg8 $18 {[%emt 0:01:06]} 35. Rxg6 {[%emt 0:00:39]} Na4 {[%emt 0:00:18]} 36. Rxg7 {[%emt 0:00:22]} 1-0

[Event "HUN-chT Youth 2019"]
[Site "Budapest"]
[Date "2019.10.29"]
[Round "7.19"]
[White "Varga, Marcell"]
[Black "Tubak, Daniel"]
[Result "1/2-1/2"]
[ECO "E91"]
[WhiteElo "2118"]
[BlackElo "2219"]
[Annotator "ChessBase"]
[PlyCount "36"]
[EventDate "2019.10.26"]
[EventType "team-tourn"]
[EventCountry "HUN"]
[SourceTitle "playchess.com"]
[Source "ChessBase"]
[SourceQuality "1"]
[TimeControl "5400+30"]

1. d4 {[%emt 0:00:00]} Nf6 {[%emt 0:00:00]} 2. Nf3 {[%emt 0:01:07]} g6 {[%emt 0:00:00]} 3. c4 {[%emt 0:00:33]} Bg7 {[%emt 0:00:00]} 4. Nc3 {[%emt 0:00:07]} d6 {[%emt 0:00:00]} 5. e4 {[%emt 0:01:38]} O-O {[%emt 0:00:00]} 6. Be2 {[%emt 0:00:14]} Na6 {[%emt 0:02:21]} 7. h3 {[%emt 0:02:10]} c5 {[%emt 0:00:11]} 8. d5 {[%emt 0:02:51]} Nc7 {[%emt 0:02:23]} 9. O-O {[%emt 0:00:57]} a6 {[%emt 0:01:37]} 10. a4 {[%emt 0:00:25]} Rb8 {[%emt 0:02:35]} 11. Qc2 {[%emt 0:04:37]} Bd7 {[%emt 0:04:23]} 12. a5 {[%emt 0:01:38]} b5 {[%emt 0:00:28]} 13. axb6 {[%emt 0:01:28]} Rxb6 {[%emt 0:00:04]} 14. e5 {[%emt 0:14:04]} Bf5 {[%emt 0:02:09]} 15. Bd3 {[%emt 0:00:22]} Bxd3 {[%emt 0:00:19]} 16. Qxd3 {[%emt 0:00:02]} Nd7 {[%emt 0:02:58]} 17. exd6 {[%emt 0:00:11]} exd6 {[%emt 0:00:02]} 18. Bf4 {[%emt 0:02:25]} Nf6 {[%emt 0:04:28]} 1/2-1/2

[Event "HUN-chT Youth 2019"]
[Site "Budapest"]
[Date "2019.10.29"]
[Round "7.20"]
[White "Kelemen, David"]
[Black "Gyurika, Tamas"]
[Result "1-0"]
[ECO "C74"]
[WhiteElo "2166"]
[BlackElo "1920"]
[Annotator "ChessBase"]
[PlyCount "93"]
[EventDate "2019.10.26"]
[EventType "team-tourn"]
[EventCountry "HUN"]
[SourceTitle "playchess.com"]
[Source "ChessBase"]
[SourceQuality "1"]
[TimeControl "5400+30"]

1. e4 {[%emt 0:00:00]} e5 {[%emt 0:00:00]} 2. Nf3 {[%emt 0:00:00]} Nc6 {[%emt 0:00:00]} 3. Bb5 {[%emt 0:00:00]} a6 {[%emt 0:00:00]} 4. Ba4 {[%emt 0:00:00]} d6 {[%emt 0:00:00]} 5. c3 {[%emt 0:00:16]} Nf6 {[%emt 0:00:08]} 6. O-O {[%emt 0:01:42]} Bg4 {[%emt 0:00:35]} 7. d3 {[%emt 0:00:24]} Be7 {[%emt 0:00:38]} 8. Nbd2 {[%emt 0:00:41]} O-O {[%emt 0:01:08]} 9. Re1 {[%emt 0:01:13]} Qc8 {[%emt 0:01:21]} 10. Nf1 {[%emt 0:01:58]} Nd8 {[%emt 0:02:17]} 11. Ne3 {[%emt 0:02:29]} Ne6 {[%emt 0:02:41]} 12. Nxg4 {[%emt 0:02:05]} Nxg4 {[%emt 0:00:16]} 13. d4 {[%emt 0:00:44]} Nf4 {[%emt 0:01:53]} 14. dxe5 {[%emt 0:03:52]} dxe5 {[%emt 0:01:21]} 15. Bd7 {[%emt 0:00:32]} Rd8 {[%emt 0:16:28]} 16. Bxc8 {[%emt 0:01:40]} Rxd1 {[%emt 0:00:08]} 17. Bxg4 {[%emt 0:00:22]} Ne2+ {[%emt 0:04:52]} 18. Kf1 {[%emt 0:00:49]} Rxc1 {[%emt 0:01:11]} 19. Raxc1 {[%emt 0:00:51]} Nxc1 {[%emt 0:00:15]} 20. Rxc1 {[%emt 0:00:01]} Bd6 {[%emt 0:01:15]} 21. Nd2 {[%emt 0:03:35]} b5 {[%emt 0:01:27]} 22. c4 {[%emt 0:01:44]} Kf8 {[%emt 0:01:30]} 23. Be2 {[%emt 0:02:04]} c6 {[%emt 0:01:46]} 24. Nb3 {[%emt 0:02:14]} Ke7 {[%emt 0:00:27]} 25. Na5 {[%emt 0:01:01]} Kd7 {[%emt 0:00:49]} 26. Bg4+ {[%emt 0:00:10]} Kc7 {[%emt 0:00:40]} 27. cxb5 {[%emt 0:00:23]} axb5 {[%emt 0:00:42]} 28. Rxc6+ {[%emt 0:00:36]} Kd8 {[%emt 0:00:31]} 29. Rxd6+ {[%emt 0:00:10]} Ke7 {[%emt 0:00:07]} 30. Rd7+ {[%emt 0:00:04]} Kf6 {[%emt 0:00:05]} 31. Nb3 {[%emt 0:00:58]} Rxa2 {[%emt 0:00:09]} 32. Rd2 {[%emt 0:00:05]} Ra4 {[%emt 0:00:15]} 33. Bf3 {[%emt 0:01:25]} g5 {[%emt 0:00:45]} 34. h3 {[%emt 0:01:11]} Kg6 {[%emt 0:01:03]} 35. Rd6+ {[%emt 0:01:57]} f6 {[%emt 0:00:13]} 36. Ke2 {[%emt 0:00:33]} Rb4 {[%emt 0:00:20]} 37. Rd3 {[%emt 0:00:06]} f5 {[%emt 0:00:07]} 38. exf5+ {[%emt 0:00:45]} Kxf5 {[%emt 0:00:19]} 39. Bg4+ {[%emt 0:00:22]} Kf6 {[%emt 0:00:27]} 40. Ke3 {[%emt 0:00:40]} e4 {[%emt 0:01:05]} 41. Rc3 {[%emt 0:00:06]} Ke5 {[%emt 0:00:16]} 42. Be2 {[%emt 0:00:35]} Kd6 {[%emt 0:00:28]} 43. Nd4 {[%emt 0:00:48]} Rxb2 {[%emt 0:00:21]} 44. Nxb5+ {[%emt 0:00:03]} Ke6 {[%emt 0:00:12]} 45. Nd4+ {[%emt 0:00:08]} Kd5 {[%emt 0:00:20]} 46. Bc4+ {[%emt 0:01:20]} Ke5 {[%emt 0:00:13]} 47. Rb3 {[%emt 0:00:06] Kd5 Kxe4+} 1-0

[Event "HUN-chT Youth 2019"]
[Site "Budapest"]
[Date "2019.10.29"]
[Round "7.21"]
[White "Blahota, Marcell"]
[Black "Koszta, Benedek"]
[Result "0-1"]
[ECO "A43"]
[WhiteElo "1765"]
[BlackElo "2043"]
[Annotator "NA"]
[PlyCount "104"]
[EventDate "2019.10.26"]
[EventType "team-tourn"]
[EventCountry "HUN"]
[SourceTitle "playchess.com"]
[Source "ChessBase"]
[SourceQuality "1"]
[TimeControl "5400+30"]

1. d4 {[%emt 0:00:00]} c5 {[%emt 0:00:00]} 2. c3 {[%emt 0:02:34]} Nf6 {[%emt 0:00:00]} 3. Nf3 {[%emt 0:01:05]} d5 {[%emt 0:00:04]} 4. Bf4 {[%emt 0:06:49]} Nc6 {[%emt 0:00:09]} 5. e3 {[%emt 0:00:27]} Qb6 {[%emt 0:00:11]} 6. Qc1 {[%emt 0:01:22]} Bf5 {[%emt 0:06:01]} 7. h3 {[%emt 0:04:01] D02: 1 d4 d5 2 Nf3 sidelines, including 2...Nf6 3 g3 and 2...Nf6 3 Bf4} (7. Nbd2 e6 8. a4 a6 9. Be2 Rc8 10. O-O Be7 11. a5 Qd8 12. dxc5 Bxc5 13. Nb3 Be7 14. Nbd4 Bg4 15. Nxc6 Rxc6 {1-0 (59) Firouzja,A (2499)-Wen,Y (2617) Bandar e Anzali 2017}) 7... h6 {[%emt 0:02:43]} 8. Be2 {[%emt 0:02:40]} Rc8 {[%emt 0:01:35]} 9. O-O {[%emt 0:06:41]} e6 {[%emt 0:01:54]} 10. Nbd2 {[%emt 0:04:52]} Be7 {[%emt 0:01:27]} 11. dxc5 $146 {[%emt 0:15:06]} ({Predecessor:} 11. Rd1 O-O 12. dxc5 Bxc5 13. Nb3 Be7 14. Nbd4 Bh7 15. Ne5 Nxe5 {0-1 (36) Gokhale,R (1347)-Sharma,D (2262) Sonipat 2017}) 11... Bxc5 {[%emt 0:01:48]} 12. Nb3 {[%emt 0:00:34]} Be7 {[%emt 0:04:13]} 13. Nbd4 {[%emt 0:04:28]} Bh7 {[%emt 0:01:43]} 14. Ne5 {[%emt 0:04:36]} Nxe5 {[%emt 0:02:01]} 15. Bxe5 {[%emt 0:00:52]} O-O {[%emt 0:01:01]} 16. Rd1 {[%emt 0:05:24]} Nd7 {[%emt 0:06:29]} 17. Bh2 {[%emt 0:02:24]} Nc5 {[%emt 0:00:53]} 18. Nb3 {[%emt 0:10:57]} Nxb3 {[%emt 0:03:10]} 19. axb3 {[%emt 0:00:18]} a6 {[%emt 0:00:30]} 20. Bd3 {[%emt 0:05:44]} Bxd3 {[%emt 0:01:30]} 21. Rxd3 {[%emt 0:00:05]} Qxb3 {[%emt 0:00:13]} 22. Qd2 {[%emt 0:00:42]} Qb6 {[%emt 0:02:51]} 23. Bf4 {[%emt 0:03:28]} Rfd8 {[%emt 0:03:17]} 24. Rd1 {[%emt 0:01:42]} Bf6 $17 {[%emt 0:01:36]} 25. Bg3 {[%emt 0:01:33]} Qa5 {[%emt 0:01:38]} 26. Qe2 {[%emt 0:03:21]} b5 {[%emt 0:04:32]} 27. Qg4 {[%emt 0:02:54]} Rc4 {[%emt 0:01:37]} 28. f4 b4 {[%emt 0:00:47]} 29. Bh4 {[%emt 0:04:42]} Bxh4 {[%emt 0:01:01]} 30. cxb4 {[%emt 0:01:41]} Bf2+ {[%emt 0:01:12]} 31. Kxf2 {[%emt 0:00:09]} Qxb4 {[%emt 0:00:11]} 32. Qe2 {[%emt 0:01:40]} Rb8 {[%emt 0:01:50]} 33. b3 {[%emt 0:00:38]} Rc3 {[%emt 0:01:36]} 34. Rxc3 {[%emt 0:01:16]} Qxc3 {[%emt 0:00:06]} 35. Rd3 {[%emt 0:00:03]} Qc5 {[%emt 0:01:04]} 36. Qd2 {[%emt 0:00:49]} Qb4 {[%emt 0:03:22]} 37. Qxb4 {[%emt 0:00:41]} Rxb4 {[%emt 0:00:07]} 38. Rc3 {[%emt 0:00:01]} g6 {[%emt 0:00:45]} 39. Rc6 {[%emt 0:00:42]} Rxb3 {[%emt 0:00:53]} 40. Rxa6 {[%emt 0:00:05]} Kg7 {[%emt 0:00:48]} 41. Ra7 {[%emt 0:01:59]} g5 {[%emt 0:02:19]} 42. g3 {[%emt 0:01:17]} Kf6 {[%emt 0:00:19]} 43. Ra4 {[%emt 0:00:23]} Rb2+ {[%emt 0:01:35]} 44. Kf3 {[%emt 0:00:38]} Rh2 {[%emt 0:00:55]} 45. Kg4 {[%emt 0:00:32]} Kg6 {[%emt 0:00:39]} 46. fxg5 {[%emt 0:00:32]} hxg5 {[%emt 0:00:07]} 47. h4 {[%emt 0:00:22]} f5+ {[%emt 0:00:31]} 48. Kf3 {[%emt 0:00:03]} g4+ {[%emt 0:00:16]} 49. Kf4 {[%emt 0:00:42]} Kf6 {[%emt 0:00:07]} 50. e4 {[%emt 0:00:23]} Rf2+ {[%emt 0:01:34]} 51. Ke3 {[%emt 0:00:04]} Rf3+ {[%emt 0:00:05]} 52. Ke2 {[%emt 0:00:08]} dxe4 {[%emt 0:00:06]} 0-1

[Event "HUN-chT Youth 2019"]
[Site "Budapest"]
[Date "2019.10.29"]
[Round "7.22"]
[White "Megyaszai, Balazs"]
[Black "Oros, Mikhailo"]
[Result "1-0"]
[ECO "B13"]
[WhiteElo "1894"]
[BlackElo "1704"]
[Annotator "NA"]
[PlyCount "57"]
[EventDate "2019.10.26"]
[EventType "team-tourn"]
[EventCountry "HUN"]
[SourceTitle "playchess.com"]
[Source "ChessBase"]
[SourceQuality "1"]
[TimeControl "5400+30"]

1. e4 {[%emt 0:00:00]} c6 {[%emt 0:00:00]} 2. d4 {[%emt 0:00:08]} d5 {[%emt 0:00:11]} 3. exd5 {[%emt 0:00:46]} cxd5 {[%emt 0:00:05]} 4. Bd3 {[%emt 0:00:48]} Nc6 {[%emt 0:00:49]} 5. c3 {[%emt 0:00:37]} Nf6 {[%emt 0:00:35]} 6. h3 {[%emt 0:01:46]} e6 {[%emt 0:02:35]} 7. Nf3 {[%emt 0:01:11]} Bd6 {[%emt 0:02:01]} 8. O-O {[%emt 0:01:44]} O-O {[%emt 0:00:24] B13: Caro-Kann: Exchange Variation and Panov-Botvinnik Attack} 9. Nbd2 {[%emt 0:02:15]} (9. Re1 Qc7 10. Qe2 b6 11. Ne5 Bb7 12. Nd2 Rfe8 13. f4 g6 14. g4 a6 15. h4 b5 16. a3 {½-½ (45) Giri,A (2775)-Riazantsev,A (2654) Geneva 2017}) 9... Rb8 $146 {[%emt 0:01:49]} ({Predecessor:} 9... Qc7 10. Re1 h6 11. Qe2 Nd7 {0-1 (47) Gasthofer,A (2441)-Meier,G (2641) playchess.com INT 2009}) 10. Qe2 {[%emt 0:03:55]} a6 {[%emt 0:02:15]} 11. Nb3 {[%emt 0:02:29]} b5 {[%emt 0:01:45]} 12. Qc2 {[%emt 0:04:20]} ({White should play} 12. Ne5 $14 Qc7 13. Bf4) 12... h6 {[%emt 0:03:05]} 13. Be3 {[%emt 0:08:04]} Bb7 {[%emt 0:04:53]} 14. Qc1 {[%emt 0:04:51]} Be7 {[#]} 15. Re1 {[%emt 0:02:49]} (15. Bxh6 $1 $18 {[%mdl 512]} gxh6 16. Qxh6) 15... Rc8 {[%emt 0:08:45] [#]} 16. Bf4 $2 {[%emt 0:09:25]} ({Only move:} 16. Bxh6 $1 $18 {[%mdl 512]} Nh7 (16... gxh6 17. Qxh6) 17. Qf4) 16... Nb4 {[%emt 0:02:39] [#]} ({Black should play} 16... Ne4 $14) 17. Bb1 $1 {[%emt 0:01:15]} Nc6 {[%emt 0:03:21]} (17... h5 $16 18. a4 bxa4) 18. Qe3 {[%emt 0:11:48]} Na5 {[%emt 0:04:41]} 19. Nxa5 {[%emt 0:06:48]} Qxa5 {[%emt 0:00:14]} 20. a3 {[%emt 0:01:11]} (20. Ne5 $18) 20... Qb6 $18 {[%emt 0:08:17]} (20... Qd8 $16) 21. Be5 {[%emt 0:03:44]} a5 {[%emt 0:03:15]} 22. Bxf6 {[%emt 0:06:10]} Bxf6 {[%emt 0:00:14]} 23. h4 {[%emt 0:04:46]} b4 {[%emt 0:01:49]} 24. axb4 {[%emt 0:02:18]} axb4 {[%emt 0:00:09]} 25. Qd3 {[%emt 0:01:43]} g6 {[%emt 0:07:04]} 26. h5 {[%emt 0:02:58]} bxc3 {[%emt 0:02:46]} 27. hxg6 {[%emt 0:02:09]} cxb2 {[%emt 0:03:36]} 28. g7 {[%emt 0:02:43]} bxa1=Q {[%emt 0:01:23]} 29. Qh7# {[%emt 0:00:15]} 1-0

[Event "HUN-chT Youth 2019"]
[Site "Budapest"]
[Date "2019.10.29"]
[Round "7.23"]
[White "Papp, Regina"]
[Black "Kocsmar, Akos"]
[Result "0-1"]
[ECO "B92"]
[WhiteElo "1366"]
[BlackElo "1916"]
[Annotator "NA"]
[PlyCount "86"]
[EventDate "2019.10.26"]
[EventType "team-tourn"]
[EventCountry "HUN"]
[SourceTitle "playchess.com"]
[Source "ChessBase"]
[SourceQuality "1"]
[TimeControl "5400+30"]

1. e4 {[%emt 0:00:00]} c5 {[%emt 0:00:00]} 2. Nf3 {[%emt 0:00:00]} d6 {[%emt 0:00:00]} 3. d4 {[%emt 0:00:34]} cxd4 {[%emt 0:00:00]} 4. Nxd4 {[%emt 0:00:15]} Nf6 {[%emt 0:00:08]} 5. Nc3 {[%emt 0:00:13]} a6 {[%emt 0:00:05]} 6. Be2 {[%emt 0:01:45]} e5 {[%emt 0:00:18]} 7. Nf3 {[%emt 0:03:51]} h6 {[%emt 0:00:42]} 8. O-O {[%emt 0:04:00]} Be6 {[%emt 0:02:11]} 9. b3 {[%emt 0:07:20] B92: Sicilian Najdorf: 6 Be2} (9. Be3 Nbd7 10. Nd2 Be7 11. a4 Qc7 12. a5 O-O 13. Re1 Rfc8 14. Nf1 Bf8 15. Qd2 Ng4 16. Rec1 Nxe3 17. Nxe3 g6 18. Ncd5 Qd8 19. Nc4 Bxd5 20. Qxd5 Rc5 {1-0 (34) Melkumyan,H (2660)-Barski,R (2458) Caleta 2019}) 9... Be7 {[%emt 0:01:50]} 10. Bb2 {[%emt 0:04:55]} O-O {[%emt 0:00:21]} 11. Qd2 {[%emt 0:10:27]} b5 {[%emt 0:00:32]} 12. a3 {[%emt 0:02:46]} Qc7 $146 {[%emt 0:01:49]} ({Predecessor:} 12... Nc6 13. Bd3 Qb6 14. h3 Rfd8 15. Qe2 Rac8 16. a4 b4 {½-½ (69) Michaux,B-Manet,E (2040) Bethune 1997}) 13. Rac1 {[%emt 0:09:38]} Nbd7 {[%emt 0:00:04]} 14. Bd3 {[%emt 0:06:53]} Rfd8 {[%emt 0:02:49]} 15. Rfe1 {[%emt 0:05:11]} Rac8 {[%emt 0:00:30]} 16. b4 {[%emt 0:02:49]} ({White should play} 16. a4 $15) 16... Nb6 {[%emt 0:00:15]} 17. Qd1 {[%emt 0:07:05]} Bc4 {[%emt 0:00:54]} 18. h3 {[%emt 0:08:07]} Qd7 {[%emt 0:01:36]} 19. Nd2 {[%emt 0:01:31]} Be6 {[%emt 0:02:38]} 20. Qf3 {[%emt 0:04:43]} Qc7 {[%emt 0:00:31]} 21. Ra1 {[%emt 0:03:36]} Nc4 {[%emt 0:02:00]} 22. Nxc4 {[%emt 0:00:46]} Bxc4 {[%emt 0:00:05]} 23. a4 {[%emt 0:01:48]} bxa4 {[%emt 0:04:43]} 24. Nxa4 {[%emt 0:00:48]} Qb7 {[%emt 0:00:35]} 25. c3 {[%emt 0:01:35]} Rc6 {[%emt 0:01:39]} 26. Ba3 {[%emt 0:01:46]} Rdc8 {[%emt 0:00:09]} 27. Rac1 {[%emt 0:01:17]} Bb5 {[%emt 0:03:44]} 28. Bc2 {[%emt 0:00:55]} Rc4 {[%emt 0:00:21]} 29. Re3 {[%emt 0:04:17]} Qc6 $17 {[%emt 0:01:37]} 30. Bb3 {[%emt 0:01:27]} Bxa4 {[%emt 0:00:08]} 31. Bxc4 {[%emt 0:00:32]} Qxc4 {[%emt 0:00:05]} 32. Bb2 {[%emt 0:00:50]} Nd7 {[%emt 0:00:36]} 33. Qg4 {[%emt 0:01:56]} Bg5 {[%emt 0:01:37]} 34. Rg3 {[%emt 0:01:10]} Nf6 {[%emt 0:00:04]} 35. Qf3 {[%emt 0:01:21]} Qxe4 {[%emt 0:00:23]} 36. Ra1 {[%emt 0:00:20]} Bb5 {[%emt 0:00:22]} 37. Qd1 {[%emt 0:00:37]} Bf4 {[%emt 0:00:44]} 38. Rf3 {[%emt 0:00:31]} Be2 {[%emt 0:00:04]} 39. Qxd6 {[%emt 0:00:47]} Bxf3 {[%emt 0:00:08]} 40. gxf3 {[%emt 0:00:14]} Qxf3 {[%emt 0:00:10]} 41. Qxa6 {[%emt 0:00:34]} Qxh3 {[%emt 0:00:36]} 42. c4 {[%emt 0:01:04]} Bh2+ {[%emt 0:00:04]} 43. Kh1 {[%emt 0:00:16]} Bg3+ {[%emt 0:00:04]} 0-1